[Event "4NCL Div 2 2024-25"]
[Site "England"]
[Date "2025.04.05"]
[Round "7.35"]
[White "York-Weaving, Richard"]
[Black "Goh, Jinghan Cameron"]
[Result "0-1"]
[Annotator "ChessBase"]
[ECO "B42"]
[WhiteElo "2331"]
[BlackElo "2017"]
[PlyCount "126"]
[EventDate "2024.11.23"]
[EventType "team-tourn"]
[EventCountry "ENG"]
[SourceTitle "playchess.com"]
[Source "ChessBase"]
[SourceQuality "1"]
[TimeControl "40/6000+30:3000+30"]

1. e4 {[%emt 0:10:06]} c5 {[%emt 0:10:07]} 2. Nf3 {[%emt 0:00:10]} e6 {[%emt 0:00:05]} 3. d4 {[%emt 0:00:19]} cxd4 {[%emt 0:00:10]} 4. Nxd4 {[%emt 0:00:05]} a6 {[%emt 0:00:03]} 5. Bd3 {[%emt 0:00:21]} Bc5 {[%emt 0:00:17]} 6. Nb3 {[%emt 0:00:27]} Ba7 {[%emt 0:00:12]} 7. Qg4 {[%emt 0:03:41]} Nf6 {[%emt 0:02:04]} 8. Qg3 {[%emt 0:00:27]} d6 {[%emt 0:01:47]} 9. Nc3 {[%emt 0:01:26]} Nc6 {[%emt 0:01:08]} 10. Bg5 {[%emt 0:09:45]} h6 {[%emt 0:05:25]} 11. Bd2 {[%emt 0:01:11]} Ne5 {[%emt 0:06:26]} 12. Be2 {[%emt 0:06:58]} b5 {[%emt 0:17:28]} 13. a3 {[%emt 0:00:22]} Bb7 {[%emt 0:00:52]} 14. O-O-O {[%emt 0:07:06]} Nxe4 {[%emt 0:06:04]} 15. Nxe4 {[%emt 0:03:48]} Bxe4 {[%emt 0:00:07]} 16. Rhe1 {[%emt 0:37:11]} Bf5 {[%emt 0:10:48]} 17. Bc3 {[%emt 0:13:53]} Qc7 {[%emt 0:28:02]} 18. Nd4 {[%emt 0:01:28]} Bxd4 {[%emt 0:01:03]} 19. Rxd4 {[%emt 0:00:06]} f6 {[%emt 0:03:26]} 20. f4 {[%emt 0:04:52]} Nc6 {[%emt 0:00:50]} 21. Bh5+ {[%emt 0:00:26]} Kf8 {[%emt 0:05:47]} 22. Rd2 {[%emt 0:00:05]} d5 {[%emt 0:02:40]} 23. Qf2 {[%emt 0:02:20]} Rd8 {[%emt 0:01:24]} 24. Bf3 {[%emt 0:01:19]} d4 {[%emt 0:02:46]} 25. Bxc6 {[%emt 0:01:11]} Qxc6 {[%emt 0:00:08]} 26. Bxd4 {[%emt 0:02:42]} Kf7 {[%emt 0:00:39]} 27. h3 {[%emt 0:00:38]} h5 {[%emt 0:02:08]} 28. Red1 {[%emt 0:00:58]} Rd7 {[%emt 0:01:38]} 29. Bb6 {[%emt 0:01:02]} Rxd2 {[%emt 0:00:14]} 30. Rxd2 {[%emt 0:00:03]} Rc8 {[%emt 0:00:32]} 31. Ba5 {[%emt 0:00:27]} Kg8 {[%emt 0:00:33]} 32. Bc3 {[%emt 0:00:53]} Qe4 {[%emt 0:00:31]} 33. Rd4 {[%emt 0:00:34]} Qc6 {[%emt 0:00:37]} 34. Qd2 {[%emt 0:00:21]} a5 {[%emt 0:00:31]} 35. Rd6 {[%emt 0:00:39]} Qc5 {[%emt 0:00:29]} 36. Rd4 {[%emt 0:00:35]} b4 {[%emt 0:00:44]} 37. axb4 {[%emt 0:00:04]} axb4 {[%emt 0:00:03]} 38. Rxb4 {[%emt 0:00:15]} Qg1+ {[%emt 0:00:19]} 39. Qd1 {[%emt 0:00:08]} Qxg2 {[%emt 0:00:10]} 40. h4 {[%emt 0:01:23]} Ra8 {[%emt 0:00:58]} 41. b3 {[%emt 0:23:38]} Bg4 {[%emt 0:25:47]} 42. Qe1 {[%emt 0:05:25]} Bf5 {[%emt 0:02:04]} 43. Qd1 {[%emt 0:02:22]} Qh2 {[%emt 0:01:00]} 44. Rd4 {[%emt 0:09:30]} Qxh4 {[%emt 0:02:54]} 45. b4 {[%emt 0:00:44]} Qg3 {[%emt 0:03:16]} 46. Kb2 {[%emt 0:05:37]} h4 {[%emt 0:03:14]} 47. b5 {[%emt 0:01:29]} h3 {[%emt 0:01:12]} 48. b6 {[%emt 0:00:53]} Qg2 {[%emt 0:00:52]} 49. Rd2 {[%emt 0:04:32]} Qc6 {[%emt 0:01:18]} 50. Qg1 {[%emt 0:00:55]} Rb8 {[%emt 0:04:43]} 51. Bd4 {[%emt 0:00:10]} Kf7 {[%emt 0:00:39]} 52. Qd1 {[%emt 0:00:37]} Qb5+ {[%emt 0:05:27]} 53. Kc1 {[%emt 0:00:06]} Qa4 {[%emt 0:00:27]} 54. Kb2 {[%emt 0:01:10]} Qb4+ {[%emt 0:01:22]} 55. Kc1 {[%emt 0:00:08]} Rd8 {[%emt 0:01:41]} 56. Qh5+ {[%emt 0:00:56]} Bg6 {[%emt 0:01:02]} 57. Qc5 {[%emt 0:00:28]} Qxc5 {[%emt 0:00:34]} 58. Bxc5 {[%emt 0:00:05]} Rxd2 {[%emt 0:00:04]} 59. Kxd2 {[%emt 0:00:23]} h2 {[%emt 0:00:08]} 60. b7 {[%emt 0:00:51]} h1=Q {[%emt 0:00:06]} 61. b8=Q {[%emt 0:00:11]} Qd5+ {[%emt 0:00:08]} 62. Kc1 {[%emt 0:01:00]} Qxc5 {[%emt 0:00:07]} 63. Qb7+ {[%emt 0:00:32]} Kg8 {[%emt 0:00:32]} 0-1

[Event "4NCL Div 2 2024-25"]
[Site "England"]
[Date "2025.04.05"]
[Round "7.36"]
[White "Mihalik, Agoston"]
[Black "Valdepenas Octavio, Javier"]
[Result "0-1"]
[Annotator "ChessBase"]
[ECO "C45"]
[WhiteElo "2133"]
[BlackElo "2145"]
[PlyCount "122"]
[EventDate "2024.11.23"]
[EventType "team-tourn"]
[EventCountry "ENG"]
[SourceTitle "playchess.com"]
[Source "ChessBase"]
[SourceQuality "1"]
[TimeControl "40/6000+30:3000+30"]

1. e4 {[%emt 0:10:04]} e5 {[%emt 0:13:01]} 2. Nf3 {[%emt 0:00:12]} Nc6 {[%emt 0:00:06]} 3. d4 {[%emt 0:00:20]} exd4 {[%emt 0:00:05]} 4. Nxd4 {[%emt 0:00:14]} Bc5 {[%emt 0:00:07]} 5. Nb3 {[%emt 0:00:41]} Bb6 {[%emt 0:00:05]} 6. Nc3 {[%emt 0:00:10]} Nf6 {[%emt 0:02:51]} 7. Bg5 {[%emt 0:02:39]} h6 {[%emt 0:00:59]} 8. Bh4 {[%emt 0:00:22]} d6 {[%emt 0:01:25]} 9. Bb5 {[%emt 0:07:14]} O-O {[%emt 0:11:18]} 10. f3 {[%emt 0:09:14]} Be6 {[%emt 0:05:32]} 11. Bxc6 {[%emt 0:09:01]} bxc6 {[%emt 0:00:10]} 12. Qe2 {[%emt 0:00:33]} Qe7 {[%emt 0:07:03]} 13. O-O-O {[%emt 0:12:20]} Bxb3 {[%emt 0:18:15]} 14. cxb3 {[%emt 0:05:06]} Rfe8 {[%emt 0:02:05]} 15. Qc4 {[%emt 0:07:51]} Qe5 {[%emt 0:15:44]} 16. Kb1 {[%emt 0:08:02]} g5 {[%emt 0:04:43]} 17. Be1 {[%emt 0:10:24]} Qc5 {[%emt 0:02:17]} 18. h4 {[%emt 0:08:49]} Qxc4 {[%emt 0:00:26]} 19. bxc4 {[%emt 0:00:03]} g4 {[%emt 0:00:17]} 20. Bd2 {[%emt 0:02:49]} Kh7 {[%emt 0:01:38]} 21. Na4 {[%emt 0:04:59]} Bf2 {[%emt 0:04:46]} 22. Rhf1 {[%emt 0:02:08]} g3 {[%emt 0:02:36]} 23. Nc3 {[%emt 0:00:28]} Rg8 {[%emt 0:07:25]} 24. Ne2 {[%emt 0:00:41]} Rae8 {[%emt 0:01:40]} 25. Bc3 {[%emt 0:03:09]} Nh5 {[%emt 0:03:43]} 26. Rd2 {[%emt 0:00:58]} Re7 {[%emt 0:02:08]} 27. Kc2 {[%emt 0:00:17]} c5 {[%emt 0:00:55]} 28. Rd5 {[%emt 0:02:00]} Ng7 {[%emt 0:01:01]} 29. Bxg7 {[%emt 0:00:42]} Kxg7 {[%emt 0:00:43]} 30. Rfd1 {[%emt 0:01:03]} Rge8 {[%emt 0:00:34]} 31. R1d3 {[%emt 0:00:50]} Re5 {[%emt 0:01:32]} 32. Nf4 {[%emt 0:00:29]} f5 {[%emt 0:00:48]} 33. exf5 {[%emt 0:00:52]} Kf6 {[%emt 0:00:29]} 34. Ne6 {[%emt 0:00:33]} Re7 {[%emt 0:00:30]} 35. Nd8 {[%emt 0:01:51]} Rxf5 {[%emt 0:00:27]} 36. Rxf5+ {[%emt 0:00:19]} Kxf5 {[%emt 0:00:01]} 37. Nc6 {[%emt 0:00:07]} Re1 {[%emt 0:00:21]} 38. Rd1 {[%emt 0:00:39]} Re2+ {[%emt 0:00:49]} 39. Rd2 {[%emt 0:00:06]} Re1 {[%emt 0:00:06]} 40. Rd1 {[%emt 0:01:15]} Re2+ {[%emt 0:01:15]} 41. Rd2 {[%emt 0:29:41]} Re8 {[%emt 0:27:40]} 42. Nxa7 {[%emt 0:02:25]} Be1 {[%emt 0:05:19]} 43. Rd5+ {[%emt 0:03:38]} Kf4 {[%emt 0:00:12]} 44. Nb5 {[%emt 0:01:23]} Re2+ {[%emt 0:09:18]} 45. Kd1 {[%emt 0:01:29]} Rxg2 {[%emt 0:04:35]} 46. Kxe1 {[%emt 0:01:10]} Rxb2 {[%emt 0:02:32]} 47. Kf1 {[%emt 0:01:09]} c6 {[%emt 0:01:43]} 48. Rxd6 {[%emt 0:00:32]} cxb5 {[%emt 0:00:26]} 49. cxb5 {[%emt 0:00:43]} c4 {[%emt 0:01:26]} 50. Rxh6 {[%emt 0:07:25]} c3 {[%emt 0:00:26]} 51. Rf6+ {[%emt 0:00:54]} Ke3 {[%emt 0:01:27]} 52. Rc6 {[%emt 0:00:40]} c2 {[%emt 0:00:20]} 53. a4 {[%emt 0:03:38]} Kxf3 {[%emt 0:00:30]} 54. Rc3+ {[%emt 0:00:57]} Kg4 {[%emt 0:00:04]} 55. h5 {[%emt 0:01:41]} Rb1+ {[%emt 0:00:47]} 56. Ke2 {[%emt 0:00:51]} c1=Q {[%emt 0:00:17]} 57. Rxc1 {[%emt 0:00:02]} Rxc1 {[%emt 0:00:08]} 58. h6 {[%emt 0:00:03]} g2 {[%emt 0:00:13]} 59. h7 {[%emt 0:00:06]} Rh1 {[%emt 0:00:37]} 60. h8=Q {[%emt 0:02:29]} Rxh8 {[%emt 0:00:07]} 61. Kf2 {[%emt 0:00:00]} Kh3 {[%emt 0:00:07]} 0-1

[Event "4NCL Div 2 2024-25"]
[Site "England"]
[Date "2025.04.05"]
[Round "7.37"]
[White "Fellowes, Billy"]
[Black "Lee, Richard W Y"]
[Result "1-0"]
[Annotator "NA"]
[ECO "C00"]
[WhiteElo "2055"]
[BlackElo "2102"]
[PlyCount "89"]
[EventDate "2024.11.23"]
[EventType "team-tourn"]
[EventCountry "ENG"]
[SourceTitle "playchess.com"]
[Source "ChessBase"]
[SourceQuality "1"]
[TimeControl "40/6000+30:3000+30"]

1. g3 {[%emt 0:10:23]} Nf6 {[%emt 0:18:05]} 2. Nf3 {[%emt 0:00:10]} d5 {[%emt 0:00:28]} 3. Bg2 {[%emt 0:00:06]} e6 {[%emt 0:00:41]} 4. d3 {[%emt 0:00:09]} Be7 {[%emt 0:01:15]} 5. O-O {[%emt 0:00:21]} O-O {[%emt 0:00:06]} 6. Nbd2 {[%emt 0:01:12]} c5 {[%emt 0:00:30]} 7. e4 {[%emt 0:00:09]} Nc6 {[%emt 0:00:42]} 8. Re1 {[%emt 0:00:16]} b6 {[%emt 0:04:56]} 9. e5 {[%emt 0:06:41]} Nd7 {[%emt 0:03:11]} 10. Nf1 {[%emt 0:03:08]} a5 {[%emt 0:04:40]} 11. a4 {[%emt 0:01:24]} Ba6 {[%emt 0:04:53]} 12. h4 {[%emt 0:01:27]} Qb8 {[%emt 0:13:46]} 13. Bf4 {[%emt 0:04:15]} Rd8 {[%emt 0:10:52]} 14. Ne3 {[%emt 0:07:34]} Nf8 {[%emt 0:13:06]} 15. h5 {[%emt 0:02:18]} b5 {[%emt 0:03:27]} 16. axb5 {[%emt 0:02:06]} Qxb5 {[%emt 0:03:05]} 17. b3 {[%emt 0:02:55]} Bb7 {[%emt 0:05:39]} 18. Ra4 {[%emt 0:04:30]} Nb4 {[%emt 0:09:19]} 19. Qe2 {[%emt 0:04:36]} Bc6 {[%emt 0:01:58]} 20. Rea1 {[%emt 0:02:12]} Nd7 {[%emt 0:01:58]} 21. R4a3 {[%emt 0:13:23]} Ra7 {[%emt 0:02:39]} 22. g4 {[%emt 0:04:30]} Rda8 {[%emt 0:01:00]} 23. g5 {[%emt 0:00:51]} Ra6 {[%emt 0:01:59]} 24. g6 {[%emt 0:17:55]} hxg6 {[%emt 0:00:41]} 25. hxg6 {[%emt 0:00:01]} fxg6 {[%emt 0:00:31]} 26. Bh3 {[%emt 0:02:46]} Nf8 {[%emt 0:00:46]} 27. Bg5 {[%emt 0:03:43]} Bxg5 {[%emt 0:02:32]} 28. Nxg5 {[%emt 0:00:01]} a4 {[%emt 0:00:46]} 29. bxa4 {[%emt 0:02:33]} Rxa4 {[%emt 0:00:14]} 30. Rxa4 {[%emt 0:00:05]} Rxa4 {[%emt 0:00:04]} 31. Rxa4 {[%emt 0:00:04]} Qxa4 {[%emt 0:00:03]} 32. Qf3 {[%emt 0:00:42]} Be8 {[%emt 0:01:59]} 33. Nxe6 {[%emt 0:00:27]} Nd7 {[%emt 0:00:31]} 34. Nxd5 {[%emt 0:01:55]} Nxd5 {[%emt 0:00:30]} 35. Qxd5 {[%emt 0:00:15]} Qa1+ {[%emt 0:00:16]} 36. Kg2 {[%emt 0:00:06]} Qxe5 {[%emt 0:00:17]} 37. Qxe5 {[%emt 0:00:21]} Nxe5 {[%emt 0:00:05]} 38. Nxc5 {[%emt 0:00:03]} Kf7 {[%emt 0:00:41]} 39. d4 {[%emt 0:00:12]} Bc6+ {[%emt 0:00:57]} 40. Kg3 {[%emt 0:00:15]} Nf3 {[%emt 0:00:50]} 41. Be6+ {[%emt 0:50:21]} Ke7 {[%emt 0:21:49]} 42. d5 {[%emt 0:00:00]} Nd4 {[%emt 0:00:39]} 43. dxc6 {[%emt 0:00:00]} Nxe6 {[%emt 0:01:06]} 44. Nxe6 {[%emt 0:00:00]} Kxe6 {[%emt 0:00:08]} 45. Kf4 {[%emt 0:16:39]} 1-0

[Event "4NCL Div 2 2024-25"]
[Site "England"]
[Date "2025.04.05"]
[Round "7.38"]
[White "Starley, Robert"]
[Black "Pitcher, John"]
[Result "0-1"]
[Annotator "NA"]
[ECO "B43"]
[WhiteElo "2036"]
[BlackElo "2147"]
[PlyCount "98"]
[EventDate "2024.11.23"]
[EventType "team-tourn"]
[EventCountry "ENG"]
[SourceTitle "playchess.com"]
[Source "ChessBase"]
[SourceQuality "1"]
[TimeControl "40/6000+30:3000+30"]

1. e4 {[%emt 0:10:02]} c5 {[%emt 0:10:11]} 2. Nf3 {[%emt 0:00:05]} e6 {[%emt 0:00:07]} 3. d4 {[%emt 0:00:07]} cxd4 {[%emt 0:00:07]} 4. Nxd4 {[%emt 0:00:07]} a6 {[%emt 0:00:48]} 5. Nc3 {[%emt 0:00:47]} b5 {[%emt 0:01:04]} 6. Be3 {[%emt 0:00:32]} Bb7 {[%emt 0:00:26]} 7. f3 {[%emt 0:01:16]} Nc6 {[%emt 0:02:18]} 8. Qd2 {[%emt 0:01:37]} Nf6 {[%emt 0:04:02]} 9. O-O-O {[%emt 0:01:01]} h5 {[%emt 0:09:50]} 10. Be2 {[%emt 0:01:25]} Rc8 {[%emt 0:01:31]} 11. Bg5 {[%emt 0:04:04]} Qc7 {[%emt 0:08:43]} 12. Rhe1 {[%emt 0:05:51]} Nxd4 {[%emt 0:03:55]} 13. Qxd4 {[%emt 0:00:41]} b4 {[%emt 0:01:11]} 14. Bxf6 {[%emt 0:06:21]} gxf6 {[%emt 0:00:37]} 15. Qxf6 {[%emt 0:00:54]} Rg8 {[%emt 0:04:04]} 16. Rd3 {[%emt 0:06:14]} Bg7 {[%emt 0:00:53]} 17. Qg5 {[%emt 0:00:41]} bxc3 {[%emt 0:00:43]} 18. Rxc3 {[%emt 0:01:56]} Bxc3 {[%emt 0:03:15]} 19. Qxg8+ {[%emt 0:00:10]} Ke7 {[%emt 0:00:08]} 20. Qg5+ {[%emt 0:00:19]} Bf6 {[%emt 0:00:09]} 21. Qd2 {[%emt 0:00:28]} Qe5 {[%emt 0:03:25]} 22. Qb4+ {[%emt 0:01:10]} Qc5 {[%emt 0:02:50]} 23. Qb3 {[%emt 0:02:02]} Rc6 {[%emt 0:01:36]} 24. c3 {[%emt 0:03:47]} Qe3+ {[%emt 0:03:08]} 25. Kc2 {[%emt 0:04:23]} Bg5 {[%emt 0:05:39]} 26. Qb4+ {[%emt 0:02:34]} Ke8 {[%emt 0:00:37]} 27. c4 {[%emt 0:01:43]} Rb6 {[%emt 0:00:58]} 28. Qc3 {[%emt 0:06:31]} Qxc3+ {[%emt 0:00:26]} 29. bxc3 {[%emt 0:00:06]} Bc6 {[%emt 0:00:56]} 30. c5 {[%emt 0:03:13]} Ba4+ {[%emt 0:00:16]} 31. Kd3 {[%emt 0:00:09]} Rb2 {[%emt 0:00:33]} 32. c4 {[%emt 0:01:01]} Rxa2 {[%emt 0:01:04]} 33. Bf1 {[%emt 0:02:20]} Ra3+ {[%emt 0:02:56]} 34. Kd4 {[%emt 0:00:10]} Ke7 {[%emt 0:00:51]} 35. e5 {[%emt 0:01:32]} Bc6 {[%emt 0:00:42]} 36. Bd3 {[%emt 0:02:21]} Bd2 {[%emt 0:01:00]} 37. Rf1 {[%emt 0:00:27]} Bc3+ {[%emt 0:00:26]} 38. Ke3 {[%emt 0:00:04]} Bxe5 {[%emt 0:00:16]} 39. f4 {[%emt 0:00:59]} Bg7 {[%emt 0:00:56]} 40. g3 {[%emt 0:00:34]} f5 {[%emt 0:00:16]} 41. Ke2 {[%emt 0:53:06]} Ra2+ {[%emt 0:50:20]} 42. Ke3 {[%emt 0:00:08]} Rxh2 {[%emt 0:00:11]} 43. Be2 {[%emt 0:00:42]} a5 {[%emt 0:00:52]} 44. Rb1 {[%emt 0:00:38]} a4 {[%emt 0:00:27]} 45. Rb6 {[%emt 0:00:14]} Bd4+ {[%emt 0:00:38]} 46. Kxd4 {[%emt 0:00:22]} Rxe2 {[%emt 0:00:09]} 47. Ra6 {[%emt 0:00:26]} Rg2 {[%emt 0:00:13]} 48. Ra7 {[%emt 0:00:35]} Rxg3 {[%emt 0:00:14]} 49. Ra6 {[%emt 0:00:27]} h4 {[%emt 0:00:12]} 0-1

[Event "4NCL Div 2 2024-25"]
[Site "England"]
[Date "2025.04.05"]
[Round "7.39"]
[White "Fallowfield, Jeremy R"]
[Black "Volovich, Julia"]
[Result "1/2-1/2"]
[Annotator "ChessBase"]
[ECO "C02"]
[WhiteElo "2072"]
[BlackElo "1947"]
[PlyCount "115"]
[EventDate "2024.11.23"]
[EventType "team-tourn"]
[EventCountry "ENG"]
[SourceTitle "playchess.com"]
[Source "ChessBase"]
[SourceQuality "1"]
[TimeControl "40/6000+30:3000+30"]

1. e4 {[%emt 0:10:10]} e6 {[%emt 0:10:09]} 2. d4 {[%emt 0:00:48]} d5 {[%emt 0:00:08]} 3. e5 {[%emt 0:00:29]} c5 {[%emt 0:00:23]} 4. c3 {[%emt 0:00:07]} Nc6 {[%emt 0:00:04]} 5. Nf3 {[%emt 0:00:06]} Bd7 {[%emt 0:00:04]} 6. Be2 {[%emt 0:00:09]} Qb6 {[%emt 0:02:11]} 7. O-O {[%emt 0:02:25]} Rc8 {[%emt 0:03:48]} 8. dxc5 {[%emt 0:11:10]} Bxc5 {[%emt 0:03:34]} 9. b4 {[%emt 0:10:42]} Be7 {[%emt 0:08:03]} 10. Na3 {[%emt 0:16:56]} a6 {[%emt 0:15:37]} 11. b5 {[%emt 0:09:04]} Na5 {[%emt 0:20:29]} 12. Rb1 {[%emt 0:11:16]} Nc4 {[%emt 0:12:35]} 13. bxa6 {[%emt 0:06:09]} Qxa6 {[%emt 0:00:31]} 14. Nxc4 {[%emt 0:01:31]} dxc4 {[%emt 0:00:08]} 15. Be3 {[%emt 0:02:16]} Bd8 {[%emt 0:08:57]} 16. Nd4 {[%emt 0:06:16]} Ne7 {[%emt 0:01:44]} 17. Bf3 {[%emt 0:01:07]} b6 {[%emt 0:02:00]} 18. Qe2 {[%emt 0:08:10]} Qa5 {[%emt 0:01:39]} 19. Bd2 {[%emt 0:01:30]} Ng6 {[%emt 0:04:35]} 20. Be4 {[%emt 0:06:30]} Nxe5 {[%emt 0:07:28]} 21. f4 {[%emt 0:00:31]} Nc6 {[%emt 0:00:39]} 22. Qxc4 {[%emt 0:01:35]} Nxd4 {[%emt 0:01:03]} 23. Qxd4 {[%emt 0:00:02]} Bf6 {[%emt 0:01:03]} 24. Qxb6 {[%emt 0:01:30]} Qxa2 {[%emt 0:01:20]} 25. Rb2 {[%emt 0:00:37]} Qc4 {[%emt 0:00:25]} 26. Bb7 {[%emt 0:01:00]} Qc5+ {[%emt 0:00:55]} 27. Qxc5 {[%emt 0:00:35]} Rxc5 {[%emt 0:00:03]} 28. Rc2 {[%emt 0:00:23]} O-O {[%emt 0:01:14]} 29. Rfc1 {[%emt 0:00:24]} g6 {[%emt 0:00:47]} 30. Bf3 {[%emt 0:00:40]} Rfc8 {[%emt 0:00:22]} 31. c4 {[%emt 0:00:47]} Ba4 {[%emt 0:00:40]} 32. Be3 {[%emt 0:00:56]} Bxc2 {[%emt 0:00:32]} 33. Bxc5 {[%emt 0:00:02]} Bd3 {[%emt 0:01:04]} 34. Bd6 {[%emt 0:01:03]} Rxc4 {[%emt 0:00:54]} 35. Rxc4 {[%emt 0:00:27]} Bxc4 {[%emt 0:00:05]} 36. Be5 {[%emt 0:00:19]} Be7 {[%emt 0:00:29]} 37. Bd4 {[%emt 0:00:01]} f6 {[%emt 0:00:34]} 38. Kf2 {[%emt 0:00:07]} Kf7 {[%emt 0:00:06]} 39. Ke3 {[%emt 0:00:10]} Bd6 {[%emt 0:00:19]} 40. g3 {[%emt 0:00:51]} Bb5 {[%emt 0:00:51]} 41. Be4 {[%emt 0:23:57]} Bc4 {[%emt 0:29:11]} 42. Bf3 {[%emt 0:09:18]} Ba3 {[%emt 0:02:27]} 43. Bc3 {[%emt 0:03:25]} Bc1+ {[%emt 0:06:25]} 44. Kd4 {[%emt 0:02:16]} Ba6 {[%emt 0:00:57]} 45. Bd1 {[%emt 0:02:39]} Bb7 {[%emt 0:04:26]} 46. Bb3 {[%emt 0:00:55]} Ba3 {[%emt 0:01:01]} 47. Ba5 {[%emt 0:04:28]} Bd6 {[%emt 0:00:49]} 48. Bd8 {[%emt 0:00:56]} Be7 {[%emt 0:03:46]} 49. Bxe7 {[%emt 0:04:59]} Kxe7 {[%emt 0:00:06]} 50. g4 {[%emt 0:00:29]} h6 {[%emt 0:01:09]} 51. h4 {[%emt 0:00:42]} g5 {[%emt 0:04:35]} 52. hxg5 {[%emt 0:02:43]} hxg5 {[%emt 0:00:04]} 53. fxg5 {[%emt 0:00:20]} e5+ {[%emt 0:00:04]} 54. Ke3 {[%emt 0:00:12]} fxg5 {[%emt 0:00:06]} 55. Bd1 {[%emt 0:00:58]} Kd6 {[%emt 0:00:13]} 56. Be2 {[%emt 0:00:44]} Bd5 {[%emt 0:01:01]} 57. Bf1 {[%emt 0:00:24]} Kc5 {[%emt 0:00:19]} 58. Bd3 {[%emt 0:00:06]} 1/2-1/2

[Event "4NCL Div 2 2024-25"]
[Site "England"]
[Date "2025.04.05"]
[Round "7.40"]
[White "Chan, Nevil"]
[Black "Brooks, Phil J"]
[Result "0-1"]
[Annotator "ChessBase"]
[ECO "D01"]
[WhiteElo "2011"]
[BlackElo "2124"]
[PlyCount "102"]
[EventDate "2024.11.23"]
[EventType "team-tourn"]
[EventCountry "ENG"]
[SourceTitle "playchess.com"]
[Source "ChessBase"]
[SourceQuality "1"]
[TimeControl "40/6000+30:3000+30"]

1. d4 {[%emt 0:10:17]} e6 {[%emt 0:10:08]} 2. Nc3 {[%emt 0:01:30]} d5 {[%emt 0:00:05]} 3. Nf3 {[%emt 0:01:31]} Nf6 {[%emt 0:00:22]} 4. Bg5 {[%emt 0:01:34]} Nbd7 {[%emt 0:00:18]} 5. e3 {[%emt 0:01:29]} Be7 {[%emt 0:04:21]} 6. Bd3 {[%emt 0:03:11]} a6 {[%emt 0:00:22]} 7. a4 {[%emt 0:04:54]} c5 {[%emt 0:03:44]} 8. O-O {[%emt 0:04:44]} h6 {[%emt 0:03:35]} 9. Bh4 {[%emt 0:01:23]} O-O {[%emt 0:00:15]} 10. Ne5 {[%emt 0:09:17]} cxd4 {[%emt 0:24:46]} 11. exd4 {[%emt 0:28:17]} Qb6 {[%emt 0:00:10]} 12. Ra2 {[%emt 0:01:18]} Re8 {[%emt 0:06:43]} 13. Nf3 {[%emt 0:13:57]} Nb8 {[%emt 0:03:37]} 14. Nb1 {[%emt 0:02:01]} Nc6 {[%emt 0:01:35]} 15. c3 {[%emt 0:00:27]} a5 {[%emt 0:00:30]} 16. Nbd2 {[%emt 0:01:34]} Qc7 {[%emt 0:01:37]} 17. Re1 {[%emt 0:02:13]} b6 {[%emt 0:00:21]} 18. Qe2 {[%emt 0:02:40]} Qa7 {[%emt 0:05:45]} 19. Raa1 {[%emt 0:04:23]} Ba6 {[%emt 0:00:20]} 20. Bxa6 {[%emt 0:01:36]} Qxa6 {[%emt 0:00:03]} 21. Qxa6 {[%emt 0:00:18]} Rxa6 {[%emt 0:00:03]} 22. Bg3 {[%emt 0:00:22]} Ra7 {[%emt 0:01:59]} 23. Ne5 {[%emt 0:00:43]} Nxe5 {[%emt 0:00:26]} 24. Bxe5 {[%emt 0:00:09]} Rc8 {[%emt 0:01:54]} 25. Bxf6 {[%emt 0:04:18]} Bxf6 {[%emt 0:00:06]} 26. g3 {[%emt 0:00:18]} g5 {[%emt 0:06:36]} 27. Re2 {[%emt 0:01:31]} Kh7 {[%emt 0:01:23]} 28. Kg2 {[%emt 0:00:24]} Kg6 {[%emt 0:00:29]} 29. h3 {[%emt 0:03:18]} Rac7 {[%emt 0:00:46]} 30. Nf3 {[%emt 0:00:43]} Rh8 {[%emt 0:04:11]} 31. Nd2 {[%emt 0:00:37]} Rc6 {[%emt 0:01:16]} 32. Nf3 {[%emt 0:00:43]} h5 {[%emt 0:01:21]} 33. Ne5+ {[%emt 0:01:03]} Bxe5 {[%emt 0:00:07]} 34. Rxe5 {[%emt 0:00:04]} f6 {[%emt 0:28:16]} 35. Re2 {[%emt 0:05:13]} Kf7 {[%emt 0:00:00]} 36. Ra3 {[%emt 0:00:00]} Re8 {[%emt 0:00:00]} 37. f4 {[%emt 0:00:00]} gxf4 {[%emt 0:00:00]} 38. gxf4 {[%emt 0:00:00]} Rg8+ {[%emt 0:00:00]} 39. Kf3 {[%emt 0:00:17]} Rg1 {[%emt 0:00:00]} 40. Rg2 {[%emt 0:01:27]} Rd1 {[%emt 0:00:00]} 41. Ke3 {[%emt 0:46:54]} Rh1 {[%emt 0:24:40]} 42. Rg3 {[%emt 0:00:18]} h4 {[%emt 0:03:47]} 43. Rf3 {[%emt 0:00:11]} Kg6 {[%emt 0:00:21]} 44. f5+ {[%emt 0:00:22]} exf5 {[%emt 0:00:05]} 45. Rb3 {[%emt 0:00:46]} f4+ {[%emt 0:05:02]} 46. Rxf4 {[%emt 0:03:59]} Rxh3+ {[%emt 0:01:02]} 47. Rf3 {[%emt 0:00:41]} Re6+ {[%emt 0:00:50]} 48. Kf2 {[%emt 0:00:13]} Rh2+ {[%emt 0:00:23]} 49. Kg1 {[%emt 0:00:34]} Rc2 {[%emt 0:00:50]} 50. Rb5 {[%emt 0:00:27]} Re1+ {[%emt 0:03:32]} 51. Rf1 {[%emt 0:00:17]} Ree2 {[%emt 0:00:03]} 0-1